[Event "61st Mongolian-ch Open 2023"]
[Site "Khovd"]
[Date "2023.05.28"]
[Round "9.2"]
[White "Bulgankhan Ganzorig"]
[Black "Enkhnar, Enkhbaatar"]
[Result "1-0"]
[ECO "D46"]
[WhiteElo "2017"]
[BlackElo "2360"]
[Annotator "TA"]
[PlyCount "35"]
[EventDate "2023.05.22"]
[EventType "tourn"]
[EventCountry "MGL"]
[SourceTitle "playchess.com"]
[Source "ChessBase"]
[SourceQuality "1"]
[TimeControl "40/5400+30:1800+30"]

{[%evp 20,35,0,0,28,25,37,28,32,15,19,25,135,135,129,132,243,225]} 1. d4 {[%emt 0:00:07]} Nf6 {[%emt 0:00:05]} 2. c4 {[%emt 0:00:09]} c6 {[%emt 0:00:38]} 3. Nc3 {[%emt 0:00:33]} d5 {[%emt 0:00:18]} 4. Nf3 {[%emt 0:01:07]} e6 {[%emt 0:01:30]} 5. e3 {[%emt 0:02:06]} Be7 {[%emt 0:01:12]} 6. Bd3 {[%emt 0:00:07]} O-O {[%emt 0:00:27]} 7. O-O {[%emt 0:00:20]} Nbd7 {[%emt 0:00:06]} 8. e4 {[%emt 0:03:51]} dxe4 {[%emt 0:02:06]} 9. Nxe4 {[%emt 0:00:08]} b6 {[%emt 0:00:13]} 10. Qe2 {[%emt 0:05:57]} Bb7 {[%emt 0:02:26]} 11. Bg5 {[%emt 0:01:24] [#]} Nh5 $146 {[%emt 0:02:17] D46: Semi-Slav: 5 e3 Nbd7 6 Bd3, Black avoids the Meran.} ({Predecessor:} 11... h6 12. Bxf6 Nxf6 13. Rad1 Qc7 14. c5 Rad8 15. b4 Nd5 16. a3 bxc5 17. Nxc5 Nc3 18. Qe3 Nxd1 19. Qe4 Bc8 20. Qh7# {1-0 Baum,J (2373)-Le Hetet,N (2393) Titled Tuesday intern op 5th May blitz 2020 (10)}) 12. Rfd1 {[%emt 0:15:09][%cal Of3e5]} Bxg5 {[%emt 0:02:18]} 13. Nfxg5 {[%emt 0:00:49]} (13. Nexg5 $5 {[%cal Rd3h7]} h6 14. Ne4 $11 (14. Qe4 Ndf6 $17)) 13... Nf4 {[%emt 0:01:05] White has an edge.} 14. Qf3 {[%emt 0:01:14]} (14. Qe3 $5 {[%cal Re3f4]} Nxd3 15. Rxd3 $14 (15. Qxd3 h6 $11)) 14... Nxd3 {[%emt 0:00:14]} 15. Qxd3 $40 {[%emt 0:00:04][%cal Og5h7][%mdl 128] Threatens to win with Nxh7! White has some attack.} ({Much weaker is} 15. Rxd3 h6 16. Nh3 c5 $15) 15... g6 {[%emt 0:05:16]} (15... h6 $11 {keeps the balance.} 16. Nf3 c5) 16. Qh3 $16 {[%emt 0:03:05][%csl Gg5][%cal Rh3h7] [#]} h5 {[%emt 0:00:58]} 17. Qg3 {[%emt 0:02:34][%cal Og5e6] Hoping for Nxe6! White has more active pieces. The black rooks are badly placed.} Qe7 {[%emt 0:03:17] Black is weak on the dark squares} (17... Nf6 $16 18. Rd3 Nxe4 19. Nxe4 Kg7) 18. Qc7 {[%emt 0:00:41] Black got outplayed after the opening.   Weighted Error Value: White=0.05 (flawless) /Black=0.50} 1-0

[Event "61st Mongolian-ch Open 2023"]
[Site "Khovd"]
[Date "2023.05.28"]
[Round "9.3"]
[White "Chinguun, Sumiya"]
[Black "Amartuvshin, Ganzorig"]
[Result "1/2-1/2"]
[ECO "B24"]
[WhiteElo "2298"]
[BlackElo "2407"]
[Annotator "TA"]
[PlyCount "108"]
[EventDate "2023.05.22"]
[EventType "tourn"]
[EventCountry "MGL"]
[SourceTitle "playchess.com"]
[Source "ChessBase"]
[SourceQuality "1"]
[TimeControl "40/5400+30:1800+30"]

{[%evp 10,108,0,-19,-8,-22,-9,-12,0,0,14,-2,31,33,38,30,36,33,27,34,33,33,47,18,18,27,23,0,0,0,0,0,0,0,0,0,0,0,12,0,37,37,59,56,60,52,58,52,58,56,58,58,72,38,38,38,38,38,61,55,55,6,6,6,6,0,0,0,0,-16,-15,-20,-20,-20,-20,-20,-20,-27,-27,-27,-27,-60,-27,-27,0,-53,0,0,0,0,0,0,0,0,-7,-7,-9,-9,0,0,0]} 1. e4 {[%emt 0:00:07]} c5 {[%emt 0:00:04]} 2. Nc3 {[%emt 0:00:09]} e6 {[%emt 0:00:05]} 3. g3 {[%emt 0:00:11]} d5 {[%emt 0:01:03]} 4. d3 {[%emt 0:03:48]} Nc6 {[%emt 0:05:26]} 5. Bg2 {[%emt 0:00:21]} Nf6 {[%emt 0:04:04]} 6. f4 {[%emt 0:01:59][%cal Bf2f4,Bf4f5][%mdl 32]} dxe4 {[%emt 0:01:43] B24: Closed Sicilian: 3 g3 sidelines.} 7. dxe4 {[%emt 0:02:33]} Qxd1+ $1 {[%emt 0:00:34]} 8. Nxd1 {[%emt 0:00:23][%cal Bc3d1,Bd1e3,Be3c4][%mdl 32]} e5 {[%emt 0:00:47]} 9. Ne3 {[%emt 0:01:49]} Bd6 {[%emt 0:03:54]} 10. Ne2 {[%emt 0:05:50] [#]} Be6 $146 {[%emt 0:05:47]} ({Predecessor:} 10... O-O 11. f5 b5 12. a4 bxa4 13. Rxa4 a5 14. g4 h6 15. h4 Ba6 16. g5 Nh5 {½-½ Piorun,K (2641)-Volkov,M (2153) Titled Tuesday intern op 04th Jan blitz 2022 (3)}) 11. f5 {[%emt 0:14:48]} Bd7 {[%emt 0:00:25]} 12. Nc4 {[%emt 0:02:32]} Bc7 {[%emt 0:00:27]} 13. Bg5 {[%emt 0:00:12]} Nd4 {[%emt 0:12:08]} 14. Bxf6 {[%emt 0:01:54]} gxf6 {[%emt 0:00:13]} 15. Ne3 {[%emt 0:00:12]} ({Reject} 15. Nxd4 exd4 16. O-O O-O-O $17) 15... Bc6 {[%emt 0:09:17]} 16. c3 {[%emt 0:15:16]} Nb5 {[%emt 0:01:46][%cal Bd4b5,Bb5d6,Bd6c4][%mdl 32]} 17. O-O-O {[%emt 0:03:23]} Ke7 {[%emt 0:04:02]} 18. a4 {[%emt 0:09:37]} Nd6 {[%emt 0:00:18]} 19. Nd5+ {[%emt 0:01:05]} Bxd5 {[%emt 0:00:06]} 20. Rxd5 {[%emt 0:00:09]} Bb6 {[%emt 0:00:40]} 21. Bf3 {[%emt 0:05:58]} Nc4 {[%emt 0:01:06]} 22. Rhd1 {[%emt 0:06:05]} Rhd8 {[%emt 0:00:11] Repels Rd7+} 23. Rxd8 {[%emt 0:03:41]} Bxd8 {[%emt 0:00:06]} 24. b3 {[%emt 0:00:29][%cal Bb2b3,Bb3b4][%mdl 32]} Na5 {[%emt 0:00:24]} 25. Kc2 {[%emt 0:00:34]} c4 {[%emt 0:03:57]} 26. b4 {[%emt 0:01:08]} Nc6 {[%emt 0:00:12]} 27. Ng1 {[%emt 0:05:53]} Rc8 {[%emt 0:08:48]} 28. Be2 {[%emt 0:00:28]} a5 {[%emt 0:00:15]} 29. bxa5 {[%emt 0:01:32]} Nxa5 {[%emt 0:00:25]} 30. Rb1 {[%emt 0:00:11]} b6 {[%emt 0:01:02]} 31. Rb4 {[%emt 0:00:38] White is more active.} Rc6 {[%emt 0:00:30]} 32. Nf3 {[%emt 0:00:46]} Ke8 {[%emt 0:01:38]} 33. Nd2 {[%emt 0:01:15]} Be7 {[%emt 0:00:08]} 34. Rb5 {[%emt 0:00:58]} Bf8 {[%emt 0:00:51] [#]} 35. Rxa5 {[%emt 0:01:13]} bxa5 $11 {[%emt 0:00:20]} 36. Nxc4 $14 {[%emt 0:00:04][%mdl 4096] Endgame KRB-KBN} Rc5 {[%emt 0:00:35]} 37. Ne3 {[%emt 0:00:06]} Be7 {[%emt 0:03:31]} 38. Nd5 {[%emt 0:00:09]} Kf8 {[%emt 0:01:53]} 39. Kd3 {[%emt 0:03:17]} Rc6 {[%emt 0:00:23]} 40. Ke3 {[%emt 0:00:00]} Bc5+ {[%emt 0:00:00]} 41. Kf3 {[%emt 0:02:23]} Kg7 {[%emt 0:03:06]} 42. Kg4 {[%emt 0:01:39]} Rc8 {[%emt 0:00:54]} 43. Bb5 {[%emt 0:01:00] [#]} h5+ $1 {[%emt 0:00:30]} 44. Kh3 {[%emt 0:02:39]} Rh8 {[%emt 0:00:57]} 45. Kh4 {[%emt 0:01:15]} Bg1 {[%emt 0:04:16]} 46. Kh3 {[%emt 0:00:29]} h4 {[%emt 0:01:04]} 47. g4 {[%emt 0:00:23]} (47. gxh4 $11 Bf2 48. Kg2) 47... Bc5 {[%emt 0:00:10]} (47... Kh6 $15) 48. c4 $11 {[%emt 0:13:20] The position is equal.} Bd4 {[%emt 0:00:39]} 49. Bd7 {[%emt 0:01:07]} Bc5 {[%emt 0:01:15]} 50. Bb5 {[%emt 0:00:23]} Bb4 {[%emt 0:00:57]} 51. Ba6 {[%emt 0:01:29]} Bd6 {[%emt 0:29:13]} 52. Bb5 {[%emt 0:00:17]} Bc5 {[%emt 0:00:18]} 53. Ba6 {[%emt 0:00:36]} Bb4 {[%emt 0:00:26]} 54. Bb5 {[%emt 0:00:17]} Bc5 {[%emt 0:03:48] Weighted Error Value: White=0.06 (flawless) /Black=0.06 (flawless)} 1/2-1/2

[Event "61st Mongolian-ch Open 2023"]
[Site "Khovd"]
[Date "2023.05.28"]
[Round "9.4"]
[White "Munkhzul, Turmunkh"]
[Black "Gan-Erdene, Sugar"]
[Result "1/2-1/2"]
[ECO "E94"]
[WhiteElo "2318"]
[BlackElo "2420"]
[Annotator "TA"]
[PlyCount "113"]
[EventDate "2023.05.22"]
[EventType "tourn"]
[EventCountry "MGL"]
[SourceTitle "playchess.com"]
[Source "ChessBase"]
[SourceQuality "1"]
[TimeControl "40/5400+30:1800+30"]

{[%evp 17,113,41,39,0,0,0,5,-21,-18,-18,-7,-12,-7,-30,-46,-51,-51,-66,-69,-57,-70,-105,-101,-113,-120,-104,-95,-114,-84,-120,-121,-118,-125,-120,-122,-119,-121,-133,-123,-127,-27,-29,-17,-25,0,0,-8,-9,0,0,0,0,0,-25,-25,-27,-26,-28,-25,-24,-1,-6,-8,-8,0,0,0,0,0,0,0,0,0,0,0,0,0,0,0,0,0,0,0,0,0,0,0,0,0,0,0,0,0,0,0,0,0,0]} 1. d4 {[%emt 0:00:02]} Nf6 {[%emt 0:00:29]} 2. c4 {[%emt 0:00:13]} g6 {[%emt 0:00:32]} 3. Nc3 {[%emt 0:00:08]} Bg7 {[%emt 0:00:05]} 4. e4 {[%emt 0:00:08]} d6 {[%emt 0:00:04]} 5. Nf3 {[%emt 0:00:09]} O-O {[%emt 0:00:06]} 6. Be2 {[%emt 0:00:07]} Na6 {[%emt 0:00:41]} 7. O-O {[%emt 0:00:19]} e5 {[%emt 0:00:42]} 8. Be3 {[%emt 0:00:25]} c6 {[%emt 0:04:57] 8...Qe7 is the modern continuation.} 9. dxe5 {[%emt 0:09:19]} dxe5 {[%emt 0:00:10]} 10. Qc2 {[%emt 0:02:24] E94: King's Indian: Classical: 6 Be2 e5 7 0-0: Various Black 7th moves.} Qe7 {[%emt 0:02:51]} 11. Rad1 {[%emt 0:03:05]} Bg4 {[%emt 0:13:06] [#]} 12. Qa4 $146 {[%emt 0:11:17]} ({Predecessor:} 12. Rd2 Bxf3 13. Bxf3 Nc5 14. Rfd1 Ne6 15. Qa4 Rfd8 16. Qa5 Rxd2 17. Rxd2 Nd7 18. g3 {1-0 Chylewski,P (2330)-Popadic,D (2157) Titled Tuesday intern op 24th Nov blitz 2020 (2)}) 12... Bxf3 {[%emt 0:18:58]} 13. Bxf3 {[%emt 0:00:34]} Nc7 {[%emt 0:00:22]} 14. Qa5 {[%emt 0:06:21]} (14. Bxa7 $2 {perishes.} b5 15. cxb5 Nxb5 16. Nxb5 cxb5 17. Qxb5 Rxa7 $19) 14... Ne6 {[%emt 0:01:28] Prevents Bc5.} 15. Rfe1 {[%emt 0:09:12]} h5 {[%emt 0:17:34]} 16. Qxe5 {[%emt 0:11:02]} (16. Bxa7 $2 {too greedy.} b5 17. cxb5 Rxa7 $19) 16... Ng4 {[%emt 0:04:15]} 17. Qd6 {[%emt 0:04:43]} Qxd6 {[%emt 0:01:34]} 18. Rxd6 {[%emt 0:01:13]} Be5 {[%emt 0:01:32][%csl LRd6,LRh2]} 19. Rd7 {[%emt 0:05:29]} Bxh2+ {[%emt 0:00:27]} 20. Kh1 {[%emt 0:00:40]} Nxe3 {[%emt 0:00:31]} 21. Kxh2 {[%emt 0:01:47]} Nc5 {[%emt 0:00:35] And now ...Nxg2 would win.} ({Much worse is} 21... Nxc4 $6 22. Rxb7 Ne5 23. Be2 $11) 22. Re7 {[%emt 0:05:26]} Nxc4 {[%emt 0:04:26] Excellent horsemanship.} 23. Be2 {[%emt 0:03:25]} Nxb2 {[%emt 0:09:45]} 24. Rb1 {[%emt 0:02:12]} Nbd3 {[%emt 0:00:06]} 25. Bxd3 {[%emt 0:01:00]} Nxd3 {[%emt 0:00:04]} 26. Rbxb7 {[%emt 0:00:32]} Nxf2 {[%emt 0:00:07]} 27. Kg3 {[%emt 0:00:53]} Ng4 {[%emt 0:00:29]} 28. e5 {[%emt 0:00:20]} Nh6 {[%emt 0:05:51]} (28... Rae8 $17 29. e6 Rxe7 30. Rxe7 fxe6 31. Rxe6 Rf6) 29. Kf4 $1 $11 {[%emt 0:01:16]} Nf5 {[%emt 0:00:23]} (29... Rad8 {is more complex.} 30. Ne4 Rd4 31. Kg5 Kh7) 30. Red7 {[%emt 0:01:04][%cal Oc3e4]} Ng7 {[%emt 0:00:57]} 31. Ne4 $1 {[%emt 0:01:22] Threatens to win with Nf6+.} Ne6+ {[%emt 0:00:09]} 32. Ke3 {[%emt 0:00:22]} a5 {[%emt 0:00:35]} 33. Re7 {[%emt 0:01:29] Strongly threatening Nf6+.} Rab8 {[%emt 0:11:08]} 34. Ra7 {[%emt 0:03:05] Black must now prevent Nf6+.} Ra8 $1 {[%emt 0:01:10]} 35. Nf6+ {[%emt 0:05:34]} Kg7 {[%emt 0:00:04] ...Rxa7 is the strong threat.} 36. Rxf7+ {[%emt 0:01:55][%mdl 64] [#] Deflection} Rxf7 {[%emt 0:00:08]} 37. Rxa8 {[%emt 0:00:05][%mdl 4096] Endgame KRN-KRN} Rb7 {[%emt 0:00:13]} 38. Rxa5 {[%emt 0:02:28]} Kh6 {[%emt 0:00:22]} 39. Ra6 {[%emt 0:01:20] The position is equal.} Rb5 {[%emt 0:00:27]} 40. Nd7 {[%emt 0:00:00]} Rd5 {[%emt 0:00:00]} 41. Rxc6 {[%emt 0:05:46] aiming for Rd6.} Rxd7 {[%emt 0:03:01]} 42. Rxe6 {[%emt 0:00:07] KR-KR} Ra7 {[%emt 0:00:02] Prevents Ra6} 43. Rd6 {[%emt 0:03:43]} Rxa2 {[%emt 0:01:53]} 44. e6 {[%emt 0:00:24] Threatening mate with e7.} Kg7 {[%emt 0:02:01]} 45. e7 {[%emt 0:00:14]} Kf7 {[%emt 0:00:03]} 46. Rxg6 {[%emt 0:00:11][%mdl 64] [#] Decoy, Promotion} Kxe7 {[%emt 0:00:09]} 47. Kf3 $1 {[%emt 0:00:15]} Ra3+ {[%emt 0:02:06]} 48. Kf4 {[%emt 0:00:11]} Kf7 {[%emt 0:00:15]} 49. Rg5 {[%emt 0:00:31]} h4 {[%emt 0:03:38]} 50. Kg4 {[%emt 0:00:17]} h3 {[%emt 0:00:13]} 51. gxh3 {[%emt 0:00:04]} Ra6 {[%emt 0:00:21]} 52. Kh5 {[%emt 0:00:28]} Rb6 {[%emt 0:00:06]} 53. h4 {[%emt 0:00:07]} Ra6 {[%emt 0:00:07]} 54. Rb5 {[%emt 0:00:07]} Kg7 {[%emt 0:00:08]} 55. Rb7+ {[%emt 0:00:05]} Kh8 {[%emt 0:00:08]} 56. Rb8+ {[%emt 0:00:06]} Kg7 {[%emt 0:00:03]} 57. Rb7+ {[%emt 0:00:04] Weighted Error Value: White=0.07 (flawless) /Black=0.07 (flawless)} 1/2-1/2

[Event "61st Mongolian-ch Open 2023"]
[Site "Khovd"]
[Date "2023.05.28"]
[Round "9.5"]
[White "Amilal Munkhdalai"]
[Black "Munkhgal, Gombosuren"]
[Result "1-0"]
[ECO "C03"]
[WhiteElo "2141"]
[BlackElo "2463"]
[Annotator "TA"]
[PlyCount "119"]
[EventDate "2023.05.22"]
[EventType "tourn"]
[EventCountry "MGL"]
[SourceTitle "playchess.com"]
[Source "ChessBase"]
[SourceQuality "1"]
[TimeControl "40/5400+30:1800+30"]

{[%evp 9,119,11,13,10,27,2,28,28,30,21,56,67,103,127,125,114,128,0,0,0,62,57,61,59,71,58,68,50,128,140,129,133,132,138,128,127,131,152,145,53,109,106,314,335,338,334,338,322,338,320,332,329,416,427,427,427,415,412,434,276,268,231,231,243,241,248,403,405,399,376,390,384,401,357,467,466,442,333,430,327,506,506,620,620,612,612,12837,12837,12840,12840,12839,12839,12839,12840,12840,12839,12840,12840,12844,12844,12845,12845,29993,12844,12846,12846,29993,12848,29994,29995,29995,29996]} 1. e4 {[%emt 0:00:02]} e6 {[%emt 0:00:13]} 2. d4 {[%emt 0:00:03]} d5 {[%emt 0:00:03]} 3. Nd2 {[%emt 0:00:05]} Be7 {[%emt 0:00:04]} 4. c3 {[%emt 0:00:58]} c5 {[%emt 0:00:08]} 5. exd5 {[%emt 0:11:48]} exd5 {[%emt 0:00:52]} 6. Ngf3 {[%emt 0:00:51] C03: French Tarrasch: Unusual Black 3rd moves.} Nc6 {[%emt 0:00:11]} 7. Bb5 {[%emt 0:02:46]} Qb6 {[%emt 0:00:26]} 8. Qe2 {[%emt 0:05:17] White has an edge.} c4 {[%emt 0:03:11] [#]} 9. Ba4 $146 {[%emt 0:06:29]} ({Predecessor:} 9. Bxc6+ Qxc6 10. O-O Be6 11. Ne5 Qc7 12. Re1 Nf6 13. Ndf3 Ne4 14. Bg5 {½-½ Radozycki,T-Hardy,D IECG CP.2004.P.00047 email}) 9... Bf5 {[%emt 0:21:15]} (9... Be6 {simplifies} 10. O-O Nf6 11. b3 cxb3 12. axb3 O-O) 10. Qe5 {[%emt 0:03:05] Inhibits Nf6.} Bd3 {[%emt 0:00:08]} 11. Qxd5 {[%emt 0:05:10] Strongly threatening Ne5.} (11. Qxg7 Bf6 12. Qg3 Nge7 $14) 11... Nf6 {[%emt 0:00:56]} 12. Qb5 {[%emt 0:12:00]} Qc7 {[%emt 0:02:10] [#]} 13. Nxc4 {[%emt 0:04:48]} ({Only move:} 13. Ne5 $1 $16 {[%cal Re5d3]}) 13... O-O $11 {[%emt 0:01:41]} 14. Be3 {[%emt 0:11:08]} Rac8 {[%emt 0:39:55]} (14... Rfd8 $11) 15. Bb3 $1 $14 {[%emt 0:06:21]} h6 {[%emt 0:11:59]} 16. Rd1 {[%emt 0:08:10]} a6 $1 {[%emt 0:08:30]} 17. Qb6 {[%emt 0:00:05]} Qb8 $1 {[%emt 0:00:03]} 18. Nce5 {[%emt 0:04:31]} (18. Rxd3 $6 Nd5 $15) 18... Bb5 {[%emt 0:04:40]} (18... Be4 $1 $14) 19. a4 $16 {[%emt 0:02:29]} Bd8 {[%emt 0:02:00]} 20. Qc5 {[%emt 0:00:43]} Nxe5 {[%emt 0:01:20]} 21. Qxe5 {[%emt 0:00:19]} Bc7 {[%emt 0:00:02]} 22. Qf5 {[%emt 0:00:58]} Bd7 {[%emt 0:00:13]} 23. Qd3 {[%emt 0:01:29][%cal Oe3h6]} b5 {[%emt 0:00:29]} 24. Bxh6 {[%emt 0:12:55]} Rfe8+ ({Better is} 24... bxa4 $14 25. Bc4 (25. Qg6 Nh5 $14) 25... Bb5 26. Bxb5 (26. Qg6 Nh5 $11) 26... Qxb5) 25. Kf1 {[%emt 0:00:00]} Ne4 $2 {[%emt 0:01:27] [#] This move loses the game for Black.} (25... bxa4 $2 26. Qg6 Qb5+ 27. Kg1 $18) (25... Kf8 $16) 26. Ng5 $1 $18 {[%emt 0:00:00]} Nxg5 {[%emt 0:00:50]} 27. Qg6 {[%emt 0:00:00][%csl Gh6][%cal Rg6g7]} (27. Bxg5 bxa4 28. Bc4 (28. Bc2 g6 $17) 28... Qxb2 $11) 27... Be5 {[%emt 0:00:27] Hoping for ...Ne6.} 28. Bxg5 {[%emt 0:00:00]} (28. Qxg5 Bf6 29. Qh5 Re7 $11) (28. dxe5 Qxe5 29. Qxg7+ (29. Qxg5 $2 Qe2+ 30. Kg1 Qxd1+ {[%mdl 64] Remove Defender, Back Rank} 31. Bxd1 Re1#) 29... Qxg7 30. Bxg7 Bc6 $18) 28... Be6 {[%emt 0:00:30]} 29. Bxe6 {[%emt 0:02:30]} Rxe6 30. Qd3 {[%emt 0:00:00]} bxa4 {[%emt 0:01:14]} 31. dxe5 {[%emt 0:00:00]} Qxb2 {[%emt 0:00:01]} 32. g3 {[%emt 0:00:00]} Rxe5 {[%emt 0:00:11]} 33. Bf4 {[%emt 0:00:00]} (33. Qxa6 Rce8 34. Bf4 (34. Qxa4 Qe2+ 35. Kg2 Rxg5 $18) 34... R5e6 $18) 33... Qb7 {[%emt 0:00:48][%cal Rb7h1]} 34. f3 {[%emt 0:01:06]} Rec5 {[%emt 0:00:15]} 35. Kg2 {[%emt 0:00:36] Rc1 would be deadly.} Rxc3 {[%emt 0:00:01]} 36. Qe2 {[%emt 0:00:43]} Rc2 {[%emt 0:00:47]} 37. Rd2 {[%emt 0:00:04]} Qb3 {[%emt 0:00:12]} (37... Rxd2 {was called for.} 38. Qxd2 Qb3) 38. Rhd1 {[%emt 0:00:30][%cal Bh1d1,Bd1d2,Bd2a2][%mdl 32]} (38. Qxa6 a3 39. Re1 a2 $18) 38... a3 {[%emt 0:00:28]} 39. Kh3 {[%emt 0:00:56] Intending Rd8+ and mate.} (39. Qxa6 a2 $16) 39... Rxd2 {[%emt 0:01:28]} 40. Rxd2 {[%emt 0:00:00]} (40. Bxd2 Qb5 41. Qxb5 axb5 $16) 40... Qb5 {[%emt 0:00:00]} 41. Ra2 {[%emt 0:07:05]} Qd7+ {[%emt 0:03:34]} 42. Kg2 {[%emt 0:00:45]} Rc3 {[%emt 0:00:07]} 43. Rd2 {[%emt 0:02:33]} ({Don't do} 43. Qxa6 Qd5 44. Rf2 (44. Rxa3 $2 {loses.} Qxf3+ 45. Kg1 Qd1+ 46. Kf2 Qc2+ 47. Kg1 Qb1+ 48. Kg2 Qe4+ 49. Kg1 Qb1+ 50. Kg2 Qb2+ 51. Kh3 Qxa3 $19) 44... Kh7 $18) 43... Qc6 {[%emt 0:06:46]} 44. Qe4 {[%emt 0:01:06]} Qc8 {[%emt 0:02:25] Inhibits Rd8+.} (44... Qxe4 $142 45. fxe4 Rb3) 45. g4 {[%emt 0:00:12]} a5 {[%emt 0:03:40]} 46. Qe7 {[%emt 0:01:15]} Rc2 {[%emt 0:00:35]} 47. Qxa3 {[%emt 0:00:15]} Rxd2+ {[%emt 0:01:00]} 48. Bxd2 {[%emt 0:00:04]} Qc4 {[%emt 0:00:08]} 49. Qxa5 {[%emt 0:00:32]} f6 {[%emt 0:00:14]} 50. Qc3 {[%emt 0:00:51]} Qe2+ {[%emt 0:00:06]} 51. Kg3 {[%emt 0:00:07]} Qf1 {[%emt 0:00:05]} 52. Qe3 {[%emt 0:00:06]} Kf7 {[%emt 0:00:24]} 53. h4 {[%emt 0:00:14]} g6 {[%emt 0:00:16]} 54. Bc3 {[%emt 0:00:05]} f5 {[%emt 0:00:25]} 55. Qd4 {[%emt 0:00:50] White threatens Qd7+ and mate.} Qa6 {[%emt 0:00:36]} 56. g5 {[%emt 0:00:18]} (56. Qd7+ $142 Kf8 57. Bb4+ Kg8 58. Qe8+ Kg7 59. Qf8+ Kh7 60. Qf7+ Kh8 61. Bc3+ Qf6 62. Bxf6#) 56... f4+ {[%emt 0:00:10]} 57. Qxf4+ {[%emt 0:00:05]} Kg8 {[%emt 0:00:10]} 58. Qf6 {[%emt 0:00:08]} (58. Qc7 $142 Kf8 59. Bb4+ Kg8 60. Qd8+ Kg7 61. Qf8+ Kh7 62. Qf7+ Kh8 63. Bc3+ Qf6 64. Bxf6#) 58... Qb7 {[%emt 0:01:26]} 59. Qh8+ {[%emt 0:00:08]} Kf7 {[%emt 0:00:03]} 60. Qh7+ {[%emt 0:00:09] A cool game by Amilal Munkhdalai.   Weighted Error Value: White=0.20 (precise) /Black=0.34} 1-0

[Event "61st Mongolian-ch Open 2023"]
[Site "Khovd"]
[Date "2023.05.28"]
[Round "9.6"]
[White "Bilguun, Sumiya"]
[Black "Munguntuul, Batkhuyag"]
[Result "1/2-1/2"]
[ECO "B26"]
[WhiteElo "2474"]
[BlackElo "2408"]
[Annotator "TA"]
[PlyCount "62"]
[EventDate "2023.05.22"]
[EventType "tourn"]
[EventCountry "MGL"]
[SourceTitle "playchess.com"]
[Source "ChessBase"]
[SourceQuality "1"]
[TimeControl "40/5400+30:1800+30"]

{[%evp 14,62,8,0,0,0,0,0,0,-3,0,-12,0,-9,0,-21,0,-6,68,37,47,-6,-13,-13,-12,-8,0,0,0,-26,-29,-22,-21,-37,-30,-21,0,0,0,0,0,0,0,0,0,0,0,0,0,0,0]} 1. e4 {[%emt 0:00:03]} c5 {[%emt 0:00:02]} 2. Nc3 {[%emt 0:00:12]} e6 {[%emt 0:00:03]} 3. g3 {[%emt 0:00:12]} Nc6 {[%emt 0:00:04]} 4. Bg2 {[%emt 0:00:06]} g6 {[%emt 0:00:04]} 5. d3 {[%emt 0:00:05]} Bg7 {[%emt 0:00:05]} 6. Be3 {[%emt 0:00:09]} d6 {[%emt 0:00:03]} (6... Nd4 7. Nce2 d6 8. c3 Nxe2 9. Nxe2 Ne7 10. Qd2 h6 11. O-O Rb8 12. d4 b6 13. b3 Ba6 14. Rfe1 Qc7 15. Rad1 h5 16. c4 O-O 17. Bh6 Kh7 18. Bxg7 Kxg7 {1-0 Bilguun,S (2474)-Munguntuul,B (2408) Ulaanbaatar m 2023 (1)}) 7. Qd2 {[%emt 0:00:32]} Rb8 {[%emt 0:00:17]} 8. Nf3 {[%emt 0:00:21]} Nf6 {[%emt 0:09:07] B26: Closed Sicilian: 3 g3, lines with early Be3.} 9. Bh6 {[%emt 0:00:12]} O-O {[%emt 0:00:41] [#]} 10. h4 $146 {[%emt 0:35:33]} ({Predecessor:} 10. O-O b5 11. Rae1 b4 12. Nd1 a5 13. Bxg7 Kxg7 14. Ne3 a4 15. a3 Ba6 16. Ra1 Qb6 {½-½ Narciso Dublan,M (2528)-Gukesh,D (2599) Carballo Concello 4th 2021 (5)}) 10... Bxh6 {[%emt 0:32:53]} 11. Qxh6 {[%emt 0:00:05]} Ng4 {[%emt 0:00:13]} 12. Qd2 {[%emt 0:00:32]} b5 {[%emt 0:17:36][%cal Bb7b5,Bb5b4][%mdl 32]} 13. h5 {[%emt 0:04:55]} b4 {[%emt 0:01:52]} 14. Nd1 {[%emt 0:05:13]} Qf6 {[%emt 0:02:22]} 15. Ng1 {[%emt 0:24:46]} Qe5 {[%emt 0:11:52]} (15... g5 $11) 16. Ne2 {[%emt 0:11:46] [#] And now f3 would win.} (16. Rh4 $5 {[%cal Rf2f4]} gxh5 17. Nf3 $14) 16... Nd4 {[%emt 0:01:39]} (16... gxh5 $2 17. f3 $18) 17. c3 {[%emt 0:05:38]} (17. Rh4 $14 gxh5 18. f4) 17... bxc3 $11 {[%emt 0:00:38]} 18. bxc3 {[%emt 0:00:24]} Nxe2 {[%emt 0:00:19]} 19. Qxe2 {[%emt 0:00:20] Threatens to win with f4.} f5 {[%emt 0:01:27]} 20. hxg6 $1 {[%emt 0:00:56]} hxg6 {[%emt 0:00:09]} 21. f4 {[%emt 0:04:30]} Qg7 {[%emt 0:01:11]} 22. Bf3 {[%emt 0:00:04]} Nf6 {[%emt 0:08:53]} 23. e5 {[%emt 0:00:22]} dxe5 {[%emt 0:01:21]} 24. Qxe5 {[%emt 0:00:07]} Bb7 {[%emt 0:05:40] The position is equal.} (24... Rb6 {simplifies} 25. Qxc5 Rd8 26. Qe3 Bb7) 25. Qxe6+ {[%emt 0:04:02]} Rf7 {[%emt 0:00:01]} 26. Bxb7 {[%emt 0:00:08]} Re8 {[%emt 0:03:52]} 27. Qxe8+ {[%emt 0:00:05]} Nxe8 {[%emt 0:00:10]} 28. Bd5 {[%emt 0:00:04][%cal Oa1b1] Rb1! is the strong threat.} Nf6 {[%emt 0:00:25]} 29. Bxf7+ {[%emt 0:00:22]} Qxf7 {[%emt 0:00:02]} 30. Ne3 {[%emt 0:01:23] Dodges Qd5} Qb7 {[%emt 0:00:23]} 31. O-O-O {[%emt 0:02:53]} Qf3 {[%emt 0:02:36][%csl LRe3,LRg3] Weighted Error Value: White=0.07 (flawless) /Black=0.07 (flawless)} 1/2-1/2